{"text_format":"1","workbook":"xlsx","n_sheets":14,"sheets":["応募書類一覧","アンケート","P1_団体情報","P2_応募活動概要","P3_応募活動詳細","P4_収支計画書","P5_助成申請金額の内訳","P6_役員・職員名簿","P7_〔複数年〕応募活動詳細（２年目）","P8_〔複数年〕収支計画書 (2年目)","P9_助成申請金額の内訳(２年目）","P10_〔複数年〕応募活動詳細（3年目） ","P11_〔複数年〕収支計画書 (3年目) ","P12_助成申請金額の内訳(3年目）"],"not_rendered":{"charts":0,"images":9,"macros":1,"external_links":1,"defined_names":13,"comments":0,"pivot_tables":0},"unopened":[],"bounds":{"document_bytes":16777216,"sheet_cells":100000,"rows_first":2000,"rows_last":500,"rows_between":2000,"halvings":0,"cell_chars":16384,"cell_head_chars":4096},"cells_cut":0,"cells_raw":0,"read":"whole","date_system":"1900"}

{"sheet":"応募書類一覧","index":0,"n_rows":39,"n_cols":8,"rows_kept":39,"cut":false,"hidden":false,"merged":[[22,3,22,11],[33,1,33,12],[15,3,15,6],[16,3,16,6],[17,3,17,6],[18,3,18,6],[19,3,19,6],[20,3,20,6],[14,3,14,11],[21,3,21,11],[1,0,1,12],[3,0,3,12],[8,3,8,6],[9,3,9,6],[10,3,10,6],[11,3,11,6],[12,3,12,6],[13,3,13,6],[7,3,7,11],[2,0,2,12],[6,3,6,11],[37,1,37,12],[23,2,24,2],[23,3,23,11],[28,1,28,12],[31,1,31,12],[34,1,34,12],[24,3,24,5],[32,1,32,7]]}
[]
["公益財団法人 九電みらい財団"]
["環境分野の次世代育成支援活動助成"]
["　2026年度応募書類"]
[]
[null,"■応募書類一覧"]
[null,null,"①","〔ABC全コース共通〕\n定款・会則・規約のいずれか"]
[null,null,"②","〔ABC全コース共通〕\n共通応募書類（本エクセルのP1～P6）"]
[null,null,null,"P1_団体情報"]
[null,null,null,"P2_応募活動概要"]
[null,null,null,"P3_応募活動詳細"]
[null,null,null,"P4_収支計画書"]
[null,null,null,"P5_助成申請金額の内訳"]
[null,null,null,"P6_役員、職員（活動関係者）名簿"]
[null,null,"③","〔Cコース(複数年助成)に応募の団体のみ〕\n複数年助成応募書類\n（２年間：本エクセルのP7～9、３年間：P7～12）"]
[null,null,null,"P7_応募活動詳細（２年目）"]
[null,null,null,"P8_収支計画書（２年目）"]
[null,null,null,"P9_助成申請金額の内訳（２年目）"]
[null,null,null,"P10_応募活動詳細（３年目）"]
[null,null,null,"P11_収支計画書（３年目）"]
[null,null,null,"P12_助成申請金額の内訳（３年目）"]
[null,null,"④","〔Aコース(上限100万円助成)に応募の団体のみ〕\n2024年度収支報告書、2025年度事業計画書・収支予算書の添付\n（法人の場合は、理事会等で承認された活動計算書／注記含む、財産目録等）"]
[null,null,"⑤","〔全コース共通・任意〕\nその他参考資料の添付\n<例>\n・活動内容が分かる既存の資料（団体パンフレット、チラシ、過去の活動の写真、行政が活動を紹介した資料など）\n・解決すべき課題の現状について参考となる資料（各種データ資料、新聞記事など）\n※参考資料は20ページ以内に収めてください。それ以上の分量は、選考に考慮されませんのでご了承ください。"]
[null,null,"⑥","〔全コース共通〕\nオンラインでのアンケートに必ずご回答ください。\n（回答は必須ですが、回答内容は選考に考慮されません）"]
[null,null,null,"アンケートページ"]
[null,"※　必ず募集要項をご確認のうえ、応募書類を記入ください。記入例も参照ください。"]
[]
[null,"■募集期間"]
[null,"　　2025年11月1日（土）～2025年12月21日（日）23:59"]
[]
[null,"■応募書類の提出方法"]
[null,"　　応募に必要な書類をメールに添付し、以下メールアドレス宛に送付下さい。"]
[null,"　　提出先メールアドレス：　josei@kyuden-mirai.or.jp"]
[null,"　　※　本応募書類はPDF等に変換せず、エクセルファイルのままご提出ください。"]
[null,"　　※　メールにて応募書類を提出後、３営業日以内に上記アドレスから応募受付完了のメールが届かない\n          場合は、必ず九電みらい財団へ電話でお問い合わせください。（092-982-4627）"]
[]
[null,"■お問い合わせ先"]
[null,"　　公益財団法人九電みらい財団"]
[null,"     電　話：092-982-4627（平日9:00～17:00）",null,null,null,null,null,"　 　メールアドレス：　josei@kyuden-mirai.or.jp"]

{"sheet":"アンケート","index":1,"n_rows":41,"n_cols":23,"rows_kept":41,"cut":false,"hidden":false,"merged":[[39,0,39,1],[40,0,40,1],[0,0,0,4],[0,22,0,30],[21,0,22,9],[26,0,27,9],[36,0,36,9],[2,0,3,9],[5,0,5,9],[20,0,20,9]]}
["〈応募書類一覧ページに戻る〉",null,null,null,null,null,null,null,null,null,null,null,null,null,null,null,null,null,null,null,null,null,"（整理番号：０００）"]
[]
["下記URLまたはQRコードからアンケートにご回答ください\n回答期限：12月21日(日)"]
[]
[]
["https://forms.office.com/r/Lq9RuAMc6i"]
[]
[]
[]
[]
[]
[]
[]
[]
[]
[]
[]
[]
[]
[]
["★★補足★★\nアンケートに記載の「九電みらいの森プロジェクト」について"]
["九電みらい財団は、地域の皆さまとの交流や環境教育の拠点としても活用できる森づくり「九電みらいの森プロジェクト」に地域の皆さまと取り組んでおり、現在は以下の２拠点です。"]
[]
["①「いさはや九電みらいの森」（長崎県諫早市）"]
["②「きりしま九電みらいの森」（鹿児島県霧島市）"]
[]
["豊かな自然に囲まれた「九電みらいの森」で環境活動を取組みませんか？\n「九電みらいの森」で活動することに少しでも関心がある団体さまは、アンケートで「関心がある」と回答ください！（担当者から個別にご連絡させていただく場合があります）"]
[]
[]
[]
[]
[]
[]
[]
[]
["▼「森プロジェクト」についての詳細はこちらをご覧ください。"]
["https://www.kyuden-mirai.or.jp/environment/planting/"]
[]
["▼各森で実施している環境教育についてはこちらをご覧ください。"]
["いさはや",null,"https://www.kyuden-mirai.or.jp/environment/isahaya/"]
["きりしま",null,"https://www.kyuden-mirai.or.jp/environment/kirishima/"]

{"sheet":"P1_団体情報","index":2,"n_rows":42,"n_cols":51,"rows_kept":42,"cut":false,"hidden":false,"merged":[[0,22,0,30],[1,0,1,30],[2,22,2,24],[2,25,2,26],[2,28,2,29],[3,0,3,19],[26,7,26,13],[0,0,0,4],[11,1,11,3],[11,4,11,12],[11,13,12,17],[12,1,12,12],[13,1,13,14],[13,15,13,20],[7,0,7,18],[8,0,9,0],[8,1,8,3],[8,4,8,30],[9,1,9,30],[10,0,12,0],[10,1,10,12],[10,13,10,17],[10,18,12,22],[10,23,12,30],[13,21,13,30],[14,1,14,30],[15,2,15,30],[16,0,18,0],[16,2,16,30],[17,1,17,4],[17,5,17,30],[18,1,18,2],[18,3,18,15],[18,16,18,18],[18,19,18,30],[19,0,20,0],[19,2,19,30],[20,1,20,4],[20,5,20,30],[21,0,22,0],[21,1,21,6],[21,7,21,30],[22,1,22,6],[22,7,22,30],[36,18,36,20],[36,21,36,30],[27,1,27,4],[27,5,27,6],[27,7,27,11],[27,12,27,16],[27,18,27,22],[27,23,27,27],[23,0,25,0],[23,1,23,30],[24,1,24,30],[25,1,25,30],[26,1,26,4],[26,5,26,6],[26,14,26,17],[26,18,26,22],[26,23,26,27],[29,23,29,27],[30,0,33,0],[30,1,30,6],[30,7,30,17],[30,18,30,30],[31,1,31,6],[31,7,31,17],[31,18,31,30],[32,1,32,6],[32,7,32,17],[28,0,29,0],[28,1,28,6],[28,7,28,11],[28,12,28,16],[28,18,28,22],[28,23,28,27],[29,1,29,6],[29,7,29,11],[29,12,29,16],[29,18,29,22],[37,0,39,0],[37,1,37,12],[37,13,37,17],[37,18,38,20],[37,21,38,30],[32,18,32,30],[33,1,33,6],[33,7,33,17],[33,18,33,30],[34,0,36,0],[34,1,34,12],[34,13,34,17],[34,18,35,20],[34,21,35,30],[35,1,35,3],[38,1,38,3],[38,4,38,12],[38,13,39,17],[39,1,39,12],[39,18,39,20],[39,21,39,30],[35,4,35,12],[35,13,36,17],[36,1,36,12]]}
["〈応募書類一覧ページに戻る〉",null,null,null,null,null,null,null,null,null,null,null,null,null,null,null,null,null,null,null,null,null,"（整理番号：０００）"]
["2026年度活動計画書"]
[null,null,null,null,null,null,null,null,null,null,null,null,null,null,null,null,null,null,null,null,null,"申請日：","2025年",null,null,11,null,"月",11,null,"日"]
["公益財団法人 九電みらい財団　御中"]
[]
["募集要項を確認・了承のうえ、以下の活動について助成を応募します。"]
[]
["１．団体情報"]
["団体名","(ふりがな)",null,null,"とくていひえいりかつどうほうじん　＊＊＊"]
[null,"特定非営利活動法人　＊＊＊＊"]
["代表者","氏名",null,null,null,null,null,null,null,null,null,null,null,"役職",null,null,null,null,"主な活動地域",null,null,null,null,"福岡県福岡市"]
[null,"(ふりがな)",null,null,"ざいだん　たろう",null,null,null,null,null,null,null,null,"代表"]
[null,"財団　太郎"]
["設立年月日\n（西暦）","2016-05-12",null,null,null,null,null,null,null,null,null,null,null,null,null,"法人格取得\n年月日（西暦）",null,null,null,null,null,"2021-04-01"]
["団体の目的","九州の未来を「ずっと先まで明るくしたい。」という思いから、豊かな自然を守り続けること、子どもたちが輝く未来につなげていくことを目的に活動しています。",null,null,null,null,null,null,null,null,null,null,null,null,null,null,null,null,null,null,null,null,null,null,null,null,null,null,null,null,null,null,null,null,null,null,null,null,null,null,null,null,null,null,null,null,null,null,null,null,{"$f":"LEN(B15)","v":74}]
["確認事項\n（要チェック）",null,"当団体は、募集要項「４　助成対象団体」に記載された要件を満たしています。\n（内容確認後に必ずチェックしてください）"]
["団体所在地","〒","810-8720"]
[null,"福岡県",null,null,null,"福岡市中央区渡辺通二丁目１－８２　電気ビル第二別館３階"]
[null,"(TEL)",null,"092-982-4627",null,null,null,null,null,null,null,null,null,null,null,null,"(E-mail)",null,null,"josei@kyuden-mirai.or.jp"]
["通知書等\n郵送先\n（※団体所在地と\n異なる場合）","〒"]
[]
["URL","ホームページ",null,null,null,null,null,"https://www.kyuden-mirai.or.jp/"]
[null,"ＳＮＳ等",null,null,null,null,null,"〔Facebook〕https://www.facebook.com/kyuden.mirai\n〔Instagram〕https://www.instagram.com/kyudenmiraizaidan\n〔その他〕"]
["団体としての\n主な活動内容\n（上位３つ）","坊ガツル湿原一帯での環境保全活動"]
[null,"「くじゅう九電の森」「いさはや九電みらいの森」「きりしま九電みらいの森」での環境教育や植林活動"]
[null,"次世代育成支援活動への助成",null,null,null,null,null,null,null,null,null,null,null,null,null,null,null,null,null,null,null,null,null,null,null,null,null,null,null,null,null,null,null,null,null,null,null,null,null,null,null,null,null,null,null,null,null,null,null,null,{"$f":"LEN(B26)","v":13}]
["事務局職員",7,null,null,null,"名",null,"(内訳)常勤の職員数：",null,null,null,null,null,null,7,null,null,null,"名　／ 非常勤：",null,null,null,null,0,null,null,null,null,"名"]
["会員数",0,null,null,null,"名",null,"一人あたり\n年会費",null,null,null,null,0,null,null,null,null,"円","年会費合計",null,null,null,null,0,null,null,null,null,"円"]
["財政規模\n※上限100万円コースの\n団体のみ記入","2024年度決算",null,null,null,null,null,"経常収入",null,null,null,null,null,null,null,null,null,"円","経常支出",null,null,null,null,null,null,null,null,null,"円"]
[null,"2025年度予算",null,null,null,null,null,"経常収入",null,null,null,null,null,null,null,null,null,"円","経常支出",null,null,null,null,null,null,null,null,null,"円"]
["　　これまでの\n　主な事業内容\n 　(２事業程度)\n\n\n・企業や行政との協働の実績\n・その他（他の助成事業による実績等）","期間",null,null,null,null,null,"事業名",null,null,null,null,null,null,null,null,null,null,"内　容\n（委託・補助の別、協働の相手方を明記）"]
[null,"2016～2020年度",null,null,null,null,null,"親子で遊ぼう♪くじゅう九電の森",null,null,null,null,null,null,null,null,null,null,"委託先：＊＊＊＊株式会社"]
[null,"2022年",null,null,null,null,null,"九電みらいの森を育てよう",null,null,null,null,null,null,null,null,null,null,"協働先：NPO法人＊＊＊＊＊＊"]
[null,"2019～2023年度",null,null,null,null,null,"森プロジェクト",null,null,null,null,null,null,null,null,null,null,"協働先：NPO法人＊＊＊＊＊＊"]
["担当者１","氏名",null,null,null,null,null,null,null,null,null,null,null,"役職",null,null,null,null,"(TEL)",null,null,"000-0000-0000"]
[null,"(ふりがな)",null,null,"ざいだん　たろう",null,null,null,null,null,null,null,null,"代表"]
[null,"財団　太郎",null,null,null,null,null,null,null,null,null,null,null,null,null,null,null,null,"(E-mail)",null,null,"***@***********"]
["担当者２","氏名",null,null,null,null,null,null,null,null,null,null,null,"役職",null,null,null,null,"(TEL)",null,null,"000-0000-0000"]
[null,"(ふりがな)",null,null,"もり　いくよ",null,null,null,null,null,null,null,null,"事務局"]
[null,"森　行代",null,null,null,null,null,null,null,null,null,null,null,null,null,null,null,null,"(E-mail)",null,null,"***@***********"]
["同一セル内で改行したい場合は、[Alt] + [Enter]を押してください。文字フォントは「ＭＳ Ｐゴシック」でサイズは10ポイント以上にしてください。"]
["黄色網掛け","のセルは必須項目のため、全て入力されているかご確認ください。入力完了後にセルの色は消えます。",null,null,null,null,null,null,null,null,null,null,null,null,null,null,null,null,null,null,null,null,null,null,null,null,null,null,null,null,null,null,null,null,null,null,null,null,null,null,null,null,null,null,null,null,null,null,null,"判定2",{"$f":"MIN(#REF!,1)","v":{"$error":"#REF!"}}]

{"sheet":"P2_応募活動概要","index":3,"n_rows":29,"n_cols":50,"rows_kept":29,"cut":false,"hidden":false,"merged":[[4,1,4,29],[5,1,5,30],[6,1,6,30],[7,1,7,30],[0,22,0,30],[1,0,1,30],[2,1,2,29],[3,1,3,12],[3,13,3,15],[3,16,3,30],[0,0,0,4],[9,28,9,30],[10,1,10,30],[11,1,11,30],[13,1,13,4],[13,6,13,8],[13,10,13,12],[13,14,13,17],[13,18,13,21],[13,23,13,25],[13,27,13,29],[9,1,9,3],[9,4,9,10],[9,11,9,13],[9,14,9,20],[9,21,9,27],[14,0,26,0],[14,1,14,4],[14,5,14,23],[14,24,14,30],[15,1,15,4],[15,5,15,23],[15,24,15,28],[15,29,15,30],[16,1,16,4],[16,5,16,23],[16,24,16,28],[16,29,16,30],[17,1,17,4],[17,5,17,23],[17,24,17,28],[17,29,17,30],[18,1,18,4],[18,5,18,23],[18,24,18,28],[18,29,18,30],[19,1,19,4],[19,5,19,23],[19,24,19,28],[19,29,19,30],[20,1,20,4],[20,5,20,23],[20,24,20,28],[20,29,20,30],[21,1,21,4],[21,5,21,23],[21,24,21,28],[21,29,21,30],[22,24,22,28],[22,29,22,30],[23,1,23,4],[23,5,23,23],[23,24,23,28],[23,29,23,30],[8,1,8,30],[26,1,26,4],[26,5,26,23],[26,24,26,28],[26,29,26,30],[12,1,12,30],[24,1,24,4],[24,5,24,23],[24,24,24,28],[24,29,24,30],[25,1,25,4],[25,5,25,23],[25,24,25,28],[25,29,25,30],[22,1,22,4],[22,5,22,23]]}
["〈応募書類一覧ページに戻る〉",null,null,null,null,null,null,null,null,null,null,null,null,null,null,null,null,null,null,null,null,null,{"$f":"P1_団体情報!W1","v":"（整理番号：０００）"}]
["2．応募活動概要"]
["応募コース\n（プルダウンから選択）","C：複数年助成への申請（年間上限20万円かつ最長３年間）",null,null,null,null,null,null,null,null,null,null,null,null,null,null,null,null,null,null,null,null,null,null,null,null,null,null,null,null,null,null,null,null,null,null,null,null,null,null,null,null,null,null,null,null,null,null,null,{"$f":"LEN(B3)","v":28}]
["2026年度\n助成申請額",194900,null,null,null,null,null,null,null,null,null,null,null,"円",null,null,"※　P4 収支計画書の「当財団助成金額」と\n　　一致させてください。",null,null,null,null,null,null,null,null,null,null,null,null,null,null,null,null,null,null,null,null,null,null,null,null,null,null,null,null,null,null,null,null,{"$f":"LEN(#REF!)","v":{"$error":"#REF!"}}]
["活動分野\n（プルダウンから選択）","②　自然の大切さを学ぶ活動"]
["活動名\n（25字以内）","森で学ぼう！＊＊＊の森での環境教育",null,null,null,null,null,null,null,null,null,null,null,null,null,null,null,null,null,null,null,null,null,null,null,null,null,null,null,null,null,{"$f":"LEN(B6)","v":17},null,null,null,null,null,null,null,null,null,null,null,null,null,null,null,null,null,{"$f":"LEN(B6)","v":17}]
["活動の概要\n（100字以内）","森の中で、間伐や森林観察等の体験を通して、子どもたちに森の役割について学んでもらい、自然を大切にする心を育んでもらう",null,null,null,null,null,null,null,null,null,null,null,null,null,null,null,null,null,null,null,null,null,null,null,null,null,null,null,null,null,{"$f":"LEN(B7)","v":58}]
["活動場所","＊＊県　　　　　＊＊市・町・村\n＊＊＊＊＊の森",null,null,null,null,null,null,null,null,null,null,null,null,null,null,null,null,null,null,null,null,null,null,null,null,null,null,null,null,null,null,null,null,null,null,null,null,null,null,null,null,null,null,null,null,null,null,null,{"$f":"LEN(B8)","v":23}]
["活動場所の\n選定理由","・森や美しい自然に囲まれており、子どもたちの体験活動に適している為\n・団体の活動エリアに近く、効率的に運営ができる為"]
["2026年度\n目標とする参加者数","全体",null,null,280,null,null,null,null,null,null,"人",null,null,"子どもの人数再掲\n（高校生以下）",null,null,null,null,null,null,170,null,null,null,null,null,null,"人",null,null,null,null,null,null,null,null,null,null,null,null,null,null,null,null,null,null,null,null,{"$f":"LEN(#REF!)","v":{"$error":"#REF!"}}]
["対象者の年齢層","小学4年生～6年生",null,null,null,null,null,null,null,null,null,null,null,null,null,null,null,null,null,null,null,null,null,null,null,null,null,null,null,null,null,null,null,null,null,null,null,null,null,null,null,null,null,null,null,null,null,null,null,{"$f":"LEN(B11)","v":9}]
["対象者の募集方法","・＊＊県内の小学校へチラシ配布\n・HP・各種SNSでの情報発信",null,null,null,null,null,null,null,null,null,null,null,null,null,null,null,null,null,null,null,null,null,null,null,null,null,null,null,null,null,null,null,null,null,null,null,null,null,null,null,null,null,null,null,null,null,null,null,{"$f":"LEN(B12)","v":31}]
["協働・連携先と\nその役割分担","協働先：NPO法人＊＊＊＊＊\n全体運営を当団体が実施し、イベント当日の講師をNPO法人＊＊＊＊が行います。"]
["活動期間\n（西暦）",2026,null,null,null,"年",5,null,null,"月",1,null,null,"日","から",null,null,null,2026,null,null,null,"年",2,null,null,"月",20,null,null,"日"]
["2026年度\n活動スケジュール","活動月",null,null,null,"内　容",null,null,null,null,null,null,null,null,null,null,null,null,null,null,null,null,null,null,"子どもの目標参加者数（高校生以下）",null,null,null,null,null,null,null,null,null,null,null,null,null,null,null,null,null,null,null,null,null,null,null,"判定",{"$f":"MIN(AX3:AX14)","v":{"$error":"#REF!"}}]
[null,"４月",null,null,null,null,null,null,null,null,null,null,null,null,null,null,null,null,null,null,null,null,null,null,null,null,null,null,null,"人",null,null,null,null,null,null,null,null,null,null,null,null,null,null,null,null,null,null,"判定2",{"$f":"MIN(AX15,1)","v":{"$error":"#REF!"}}]
[null,"５月",null,null,null,"＊＊森での環境教育（植樹編）",null,null,null,null,null,null,null,null,null,null,null,null,null,null,null,null,null,null,90,null,null,null,null,"人"]
[null,"６月",null,null,null,null,null,null,null,null,null,null,null,null,null,null,null,null,null,null,null,null,null,null,null,null,null,null,null,"人"]
[null,"７月",null,null,null,null,null,null,null,null,null,null,null,null,null,null,null,null,null,null,null,null,null,null,null,null,null,null,null,"人"]
[null,"８月",null,null,null,null,null,null,null,null,null,null,null,null,null,null,null,null,null,null,null,null,null,null,null,null,null,null,null,"人"]
[null,"９月",null,null,null,null,null,null,null,null,null,null,null,null,null,null,null,null,null,null,null,null,null,null,null,null,null,null,null,"人"]
[null,"10月",null,null,null,null,null,null,null,null,null,null,null,null,null,null,null,null,null,null,null,null,null,null,null,null,null,null,null,"人"]
[null,"11月",null,null,null,"　＊＊森での環境教育（間伐編）",null,null,null,null,null,null,null,null,null,null,null,null,null,null,null,null,null,null,80,null,null,null,null,"人"]
[null,"12月",null,null,null,null,null,null,null,null,null,null,null,null,null,null,null,null,null,null,null,null,null,null,null,null,null,null,null,"人"]
[null,"１月",null,null,null,null,null,null,null,null,null,null,null,null,null,null,null,null,null,null,null,null,null,null,null,null,null,null,null,"人"]
[null,"２月",null,null,null,null,null,null,null,null,null,null,null,null,null,null,null,null,null,null,null,null,null,null,null,null,null,null,null,"人"]
[null,"３月",null,null,null,null,null,null,null,null,null,null,null,null,null,null,null,null,null,null,null,null,null,null,null,null,null,null,null,"人"]
["同一セル内で改行したい場合は、[Alt] + [Enter]を押してください。文字フォントは「ＭＳ Ｐゴシック」でサイズは10ポイント以上にしてください。"]
["黄色網掛け","のセルは必須項目のため、全て入力されているかご確認ください。入力完了後にセルの色は消えます。"]

{"sheet":"P3_応募活動詳細","index":4,"n_rows":10,"n_cols":53,"rows_kept":10,"cut":false,"hidden":false,"merged":[[7,1,7,30],[6,1,6,30],[0,22,0,30],[1,0,1,30],[2,1,2,30],[3,1,3,30],[4,1,4,30],[5,1,5,30],[0,0,0,5]]}
["〈応募書類一覧ページに戻る〉",null,null,null,null,null,null,null,null,null,null,null,null,null,null,null,null,null,null,null,null,null,{"$f":"P1_団体情報!W1","v":"（整理番号：０００）"}]
["3．応募活動詳細"]
["活動の目的\n（250字以内）",null,null,null,null,null,null,null,null,null,null,null,null,null,null,null,null,null,null,null,null,null,null,null,null,null,null,null,null,null,null,{"$f":"LEN(B3)","v":0},null,null,null,null,null,null,null,null,null,null,null,null,null,null,null,null,null,null,null,null,{"$f":"LEN(B3)","v":0}]
["2026年度\n活動内容\n（800字以内）",null,null,null,null,null,null,null,null,null,null,null,null,null,null,null,null,null,null,null,null,null,null,null,null,null,null,null,null,null,null,{"$f":"LEN(B4)","v":0}]
["募集時及び実施後の\n情報発信内容\n（250字以内）",null,null,null,null,null,null,null,null,null,null,null,null,null,null,null,null,null,null,null,null,null,null,null,null,null,null,null,null,null,null,0,null,null,null,null,null,null,null,null,null,null,null,null,null,null,null,null,null,null,null,null,{"$f":"LEN(B5)","v":0}]
["2026年度\n目標とする成果\n（250字以内）",null,null,null,null,null,null,null,null,null,null,null,null,null,null,null,null,null,null,null,null,null,null,null,null,null,null,null,null,null,null,0,null,null,null,null,null,null,null,null,null,null,null,null,null,null,null,null,null,null,null,null,{"$f":"LEN(B6)","v":0}]
["助成終了後の\n活動予定\n（250字以内）\n※複数年助成に応募の団体は、活動最終年度以降を想定して記入ください。",null,null,null,null,null,null,null,null,null,null,null,null,null,null,null,null,null,null,null,null,null,null,null,null,null,null,null,null,null,null,0,null,null,null,null,null,null,null,null,null,null,null,null,null,null,null,null,null,null,null,null,{"$f":"LEN(B7)","v":0}]
["その他PRしたいこと\n（任意）\n（250字以内）",null,null,null,null,null,null,null,null,null,null,null,null,null,null,null,null,null,null,null,null,null,null,null,null,null,null,null,null,null,null,{"$f":"LEN(B8)","v":0},null,null,null,null,null,null,null,null,null,null,null,null,null,null,null,null,null,null,null,null,{"$f":"LEN(B8)","v":0}]
["同一セル内で改行したい場合は、[Alt] + [Enter]を押してください。文字フォントは「ＭＳ Ｐゴシック」でサイズは10ポイント以上にしてください。"]
["黄色網掛け","のセルは必須項目のため、全て入力されているかご確認ください。入力完了後にセルの色は消えます。"]

{"sheet":"P4_収支計画書","index":5,"n_rows":20,"n_cols":5,"rows_kept":20,"cut":false,"hidden":false,"merged":[[0,0,0,2],[12,0,12,4],[13,1,13,2],[16,1,16,2],[1,0,1,2],[2,0,2,4],[4,0,4,4],[5,1,5,2],[7,1,9,1],[10,1,10,2]]}
["〈応募書類一覧ページに戻る〉",null,null,null,{"$f":"P1_団体情報!W1","v":"（整理番号：０００）"}]
[]
["2026年度　収支計画書"]
[]
["１　収入の部（応募活動の収入計画）"]
[null,"区　　分",null,"予算額（円）","内容（○○県助成、会費等）"]
[null,"①","当助成申請金額※",{"$f":"[1]P2_応募活動概要!B4","v":194900}]
[null,"②","当該活動による収入",51000,"参加費（300円×170人）"]
[null,null,"他の助成金・補助金収入",200000,"○○県環境活動補助金"]
[null,null,"自己資金",0]
[null,"合　　計（①＋②）",null,{"$f":"SUM(D7:D10)","v":445900}]
[]
["２　支出の部（応募活動に必要な経費）"]
[null,"区　　分",null,"予算額（円）","内容（○○県助成、会費等）"]
[null,"①","当助成申請金額※",{"$f":"[1]P2_応募活動概要!B4","v":194900}]
[null,"②","当助成金以外(自己資金等)で\n応募活動に充当する金額",0]
[null,"合　　計（①＋②）",null,{"$f":"SUM(D15:D16)","v":194900}]
[]
[]
["※　当助成申請金額の内訳は、P5「助成申請金額の内訳」（本エクセルの別シート）に記入ください。"]

{"sheet":"P5_助成申請金額の内訳","index":6,"n_rows":28,"n_cols":12,"rows_kept":28,"cut":false,"hidden":false,"merged":[[27,0,31,9],[0,0,0,1],[0,6,0,9],[1,0,1,9],[2,0,2,9],[22,0,22,6],[26,0,26,1],[26,2,26,3]]}
["〈応募書類一覧ページに戻る〉",null,null,null,null,null,{"$f":"P1_団体情報!W1","v":"（整理番号：０００）"}]
["2026年度　助成申請金額の内訳"]
["・P4「収支計画書」に記入した 「当助成申請金額(上限100万円もしくは上限20万円)」の内訳 をご記入ください。\n・ひとつの経費を「助成金」と「自己資金等」で分けて支払う場合は、助成金で申請する金額を「当助成申請金額」欄に、自己負担分を「自己資金等支払金額」欄に、それぞれご記入ください。なお、自己資金のみで支払う経費は記入不要です。",null,null,null,null,null,null,null,null,null,null,"（参考）"]
["通し番号","活動","【科目】","内容（詳しくご記入ください）","数量","単位","単価(税込)","当助成申請金額\n（税込・円）","自己資金等支払金額\n（税込・円）","提出書類",null,"【科目】"]
[1,"森林プログラム（5月：植林）","人件費","スタッフ人件費（1000円×4時間）",10,"名",4000,20000,20000,{"$f":"IF(OR(C5=\"備品費\",C5=\"賃借料\"),\n   \"見積書をご提出ください\",\n   IF(C5=\"謝礼金(講師向け)\",\n      \"講師略歴をご提出ください\",\n      IF(AND(C5=\"広告費\",H5>30000),\n         \"見積書をご提出ください\",\n         \"\"\n      )\n   )\n)","v":""},null,"消耗品費"]
[2,null,"旅費","スタッフガソリン代　市内から＊＊の森まで\n（各スタッフ走行距離総計）",180,"km",15,{"$f":"E6*G6","v":2700},null,{"$f":"IF(OR(C6=\"備品費\",C6=\"賃借料\"),\n   \"見積書をご提出ください\",\n   IF(C6=\"謝礼金(講師向け)\",\n      \"講師略歴をご提出ください\",\n      IF(AND(C6=\"広告費\",H6>30000),\n         \"見積書をご提出ください\",\n         \"\"\n      )\n   )\n)","v":""},null,"広告費"]
[3,null,"消耗品費","軍手",50,"双",100,{"$f":"E7*G7","v":5000},null,"",null,"通信運搬費"]
[4,null,"消耗品費","苗木（ヒノキ）",20,"本",2000,{"$f":"E8*G8","v":40000},null,"",null,"保険料"]
[5,null,"備品費","草刈機",1,"台",20000,20000,null,"見積書をご提出ください",null,"謝礼金\n（講師向け）"]
[6,null,"保険料","イベント賠償保険",1,"日",10000,10000,null,"",null,"謝礼金\n（ボランティア向け）"]
[7,null,"広告費","募集PRチラシ作成",1,"部",5000,5000,null,"",null,"人件費"]
[8,null,"通信運搬費","PRチラシ郵送代（県内小学校30校）",30,"通",370,11100,null,"",null,"旅費"]
[9,"森林プログラム（11月：間伐）","謝礼金(講師向け)","○○氏謝礼金（＊＊活動など経験実績多数あり）",1,"回",13000,9000,4000,"講師略歴をご提出ください",null,"備品費"]
[10,null,"人件費","スタッフ人件費（1000円×4時間）",5,"名",4000,20000,null,"",null,"賃借料"]
[11,null,"消耗品費","木の黒板",50,"枚",120,6000,null,"",null,"整備費"]
[12,null,"備品費","のこぎり",4,"本",5000,20000,null,"見積書をご提出ください",null,"その他"]
[13,null,"保険料","イベント賠償保険",1,"日",12000,10000,2000,""]
[14,null,"広告費","募集PRチラシ作成",1,"部",5000,5000,null,""]
[15,null,"通信運搬費","PRチラシ郵送代（県内小学校30校）",30,"通",370,11100,null,""]
[null,null,null,null,null,null,null,null,null,""]
[null,null,null,null,null,null,null,null,null,""]
[null,null,null,null,null,null,null,null,null,""]
["合　計",null,null,null,null,null,null,{"$f":"SUM(H5:H22)","v":194900},{"$f":"SUM(I5:I22)","v":26000}]
["※行数は、必要に応じて追加ください。",null,null,null,"P4に記入した「当助成申請金額」：",null,null,{"$f":"P4_収支計画書!D7","v":194900}]
[null,null,null,null,null,null,null,{"$f":"IF(H23=H24,\"一致\",\"不一致（修正してください）\")","v":"一致"},"←「当助成申請金額」は必ず一致させてください。"]
[]
["応募コース",null,{"$f":"P2_応募活動概要!B3","v":"C：複数年助成への申請（年間上限20万円かつ最長３年間）"},null,null,null,null,{"$f":"IF(OR(AND(C27=\"A：上限100万円助成への申請\",H23>1000000),\nAND(C27=\"B：上限20万円助成への申請\",H23>200000),\nAND(C27=\"C：複数年助成への申請（年間上限20万円かつ最長３年間）\",H23>200000)),\n\"上限金額をご確認ください\",\n\"\")","v":""}]
["【「助成申請金額の内訳」入力にあたっての留意点】\n・　募集要項の「７　助成対象経費」をよく確認のうえ、その内容に基づき記入してください。\n・　内容・単価・数量は明確、詳細に記載してください。"]

{"sheet":"P6_役員・職員名簿","index":7,"n_rows":31,"n_cols":3,"rows_kept":31,"cut":false,"hidden":false,"merged":[[0,0,0,1],[3,0,3,2],[5,1,5,2],[30,0,30,2]]}
["〈応募書類一覧ページに戻る〉",null,{"$f":"P1_団体情報!W1","v":"（整理番号：０００）"}]
[]
[]
["役員・職員（活動関連者）名簿"]
[]
["　団体名　　　　　　　　　　　　　　",{"$f":"P1_団体情報!B10","v":"特定非営利活動法人　＊＊＊＊"}]
[]
["役職名","氏名（ふりがな）","応募団体以外の所属があれば\nご記入ください（勤務先等）"]
["代表","財団　太郎（ざいだん　たろう）","＊＊＊株式会社"]
["副代表","未来　花子（みらい　はなこ）","カフェ＊＊＊＊"]
["事務局　","森　育代（もり　いくよ）","＊＊＊＊保育園"]
["事務局　","川上　魚一（かわかみ　うおいち）","スーパー＊＊＊＊"]
["事務局　","海　綺麗（うみ　きれい）","なし"]
[]
[]
[]
[]
[]
[]
[]
[]
[]
[]
[]
[]
[]
[]
[]
[]
[]
["※ 団体全員の名簿ではなく、応募活動に関連する役員、職員の氏名、ふりがな、所属を記載してください。"]

{"sheet":"P7_〔複数年〕応募活動詳細（２年目）","index":8,"n_rows":26,"n_cols":36,"rows_kept":26,"cut":false,"hidden":false,"merged":[[6,1,6,3],[6,4,6,30],[0,0,0,5],[0,24,0,30],[1,0,1,30],[3,0,3,30],[4,1,4,29],[5,1,5,30],[7,1,7,12],[7,13,7,15],[7,16,7,30],[8,1,8,30],[9,1,9,30],[10,28,10,30],[11,0,23,0],[11,1,11,4],[11,5,11,23],[11,24,11,30],[12,1,12,4],[12,5,12,23],[12,24,12,28],[12,29,12,30],[13,1,13,4],[10,1,10,3],[10,4,10,10],[10,11,10,13],[10,14,10,20],[10,21,10,27],[13,5,13,23],[13,24,13,28],[13,29,13,30],[14,1,14,4],[14,5,14,23],[14,24,14,28],[14,29,14,30],[15,1,15,4],[15,5,15,23],[15,24,15,28],[15,29,15,30],[16,1,16,4],[16,5,16,23],[16,24,16,28],[16,29,16,30],[17,1,17,4],[17,5,17,23],[17,24,17,28],[17,29,17,30],[18,1,18,4],[18,5,18,23],[18,24,18,28],[18,29,18,30],[19,1,19,4],[19,5,19,23],[19,24,19,28],[19,29,19,30],[20,1,20,4],[20,5,20,23],[20,24,20,28],[20,29,20,30],[23,1,23,4],[23,5,23,23],[23,24,23,28],[23,29,23,30],[21,1,21,4],[21,5,21,23],[21,24,21,28],[21,29,21,30],[22,1,22,4],[22,5,22,23],[22,24,22,28],[22,29,22,30]]}
["〈応募書類一覧ページに戻る〉",null,null,null,null,null,null,null,null,null,null,null,null,null,null,null,null,null,null,null,null,null,null,null,{"$f":"P1_団体情報!W1","v":"（整理番号：０００）"}]
["【複数年助成】２年目の活動について"]
[]
["P2「応募活動詳細」の応募コース欄で「C：複数年助成への申請（年間上限20万円かつ最長３年間）を選択した団体のみ本ページ以降を入力ください。"]
["活動年数\n（プルダウンから選択）","２年間（2025年４月１日～2027年３月31日）",null,null,null,null,null,null,null,null,null,null,null,null,null,null,null,null,null,null,null,null,null,null,null,null,null,null,null,null,null,null,null,null,{"$f":"LEN(C5)","v":0}]
["複数年助成に\n応募する理由\n（200字以内）",null,null,null,null,null,null,null,null,null,null,null,null,null,null,null,null,null,null,null,null,null,null,null,null,null,null,null,null,null,null,null,null,null,null,{"$f":"LEN(B6)","v":0}]
["単年コースとの\n併願希望確認",null,null,null,"複数年助成の助成先として決定しなかった場合、単年の上限20万円助成コースでの選考を\n希望します。",null,null,null,null,null,null,null,null,null,null,null,null,null,null,null,null,null,null,null,null,null,null,null,null,null,null,null,null,null,{"$f":"LEN(#REF!)","v":{"$error":"#REF!"}}]
["2027年度\n助成申請額",null,null,null,null,null,null,null,null,null,null,null,null,"円",null,null,"※　P８ 収支計画書の「当財団助成金額」と\n　　一致させてください。",null,null,null,null,null,null,null,null,null,null,null,null,null,null,null,null,null,{"$f":"LEN(#REF!)","v":{"$error":"#REF!"}}]
["2027年度\n活動内容\n（400字以内）",null,null,null,null,null,null,null,null,null,null,null,null,null,null,null,null,null,null,null,null,null,null,null,null,null,null,null,null,null,null,null,null,null,null,{"$f":"LEN(B9)","v":0}]
["2027年度\n目標とする成果\n（250字以内）",null,null,null,null,null,null,null,null,null,null,null,null,null,null,null,null,null,null,null,null,null,null,null,null,null,null,null,null,null,null,null,null,null,null,{"$f":"LEN(B10)","v":0}]
["2027年度\n目標とする参加者数","全体",null,null,350,null,null,null,null,null,null,"人",null,null,"子どもの人数再掲\n（高校生以下）",null,null,null,null,null,null,210,null,null,null,null,null,null,"人",null,null,null,null,null,{"$f":"LEN(#REF!)","v":{"$error":"#REF!"}}]
["2027年度\n活動スケジュール","活動月",null,null,null,"内　容",null,null,null,null,null,null,null,null,null,null,null,null,null,null,null,null,null,null,"子どもの目標参加者数（高校生以下）",null,null,null,null,null,null,null,null,"判定",{"$f":"MIN(AI5:AI11)","v":{"$error":"#REF!"}}]
[null,"４月",null,null,null,null,null,null,null,null,null,null,null,null,null,null,null,null,null,null,null,null,null,null,null,null,null,null,null,"人",null,null,null,"判定2",{"$f":"MIN(AI12,1)","v":{"$error":"#REF!"}}]
[null,"５月",null,null,null,"＊＊森での環境教育（植樹編）",null,null,null,null,null,null,null,null,null,null,null,null,null,null,null,null,null,null,90,null,null,null,null,"人"]
[null,"６月",null,null,null,null,null,null,null,null,null,null,null,null,null,null,null,null,null,null,null,null,null,null,null,null,null,null,null,"人"]
[null,"７月",null,null,null,null,null,null,null,null,null,null,null,null,null,null,null,null,null,null,null,null,null,null,null,null,null,null,null,"人"]
[null,"８月",null,null,null,null,null,null,null,null,null,null,null,null,null,null,null,null,null,null,null,null,null,null,null,null,null,null,null,"人"]
[null,"９月",null,null,null,null,null,null,null,null,null,null,null,null,null,null,null,null,null,null,null,null,null,null,null,null,null,null,null,"人"]
[null,"10月",null,null,null,null,null,null,null,null,null,null,null,null,null,null,null,null,null,null,null,null,null,null,null,null,null,null,null,"人"]
[null,"11月",null,null,null,"　＊＊森での環境教育（間伐編）",null,null,null,null,null,null,null,null,null,null,null,null,null,null,null,null,null,null,80,null,null,null,null,"人"]
[null,"12月",null,null,null,null,null,null,null,null,null,null,null,null,null,null,null,null,null,null,null,null,null,null,null,null,null,null,null,"人"]
[null,"１月",null,null,null,null,null,null,null,null,null,null,null,null,null,null,null,null,null,null,null,null,null,null,null,null,null,null,null,"人"]
[null,"２月",null,null,null,"　＊＊森での環境教育（間伐材を使った工作編）",null,null,null,null,null,null,null,null,null,null,null,null,null,null,null,null,null,null,40,null,null,null,null,"人"]
[null,"３月",null,null,null,null,null,null,null,null,null,null,null,null,null,null,null,null,null,null,null,null,null,null,null,null,null,null,null,"人"]
[]
["同一セル内で改行したい場合は、[Alt] + [Enter]を押してください。文字サイズは10ポイント以上でお願いします。"]

{"sheet":"P8_〔複数年〕収支計画書 (2年目)","index":9,"n_rows":20,"n_cols":5,"rows_kept":20,"cut":false,"hidden":false,"merged":[[0,0,0,2],[12,0,12,4],[13,1,13,2],[16,1,16,2],[1,0,1,4],[2,0,2,4],[4,0,4,4],[5,1,5,2],[7,1,9,1],[10,1,10,2]]}
["〈応募書類一覧ページに戻る〉",null,null,null,{"$f":"P1_団体情報!W1","v":"（整理番号：０００）"}]
["【複数年助成】２年目"]
["2027年度　収支計画書"]
[]
["１　収入の部（応募活動の収入計画）"]
[null,"区　　分",null,"予算額（円）","内容（○○県助成、会費等）"]
[null,"①","当助成申請金額※",{"$f":"'P7_〔複数年〕応募活動詳細（２年目）'!B8","v":0}]
[null,"②","当該活動による収入"]
[null,null,"他の助成金・補助金収入"]
[null,null,"自己資金"]
[null,"合　　計（①＋②）",null,{"$f":"SUM(D7:D10)","v":0}]
[]
["２　支出の部（応募活動に必要な経費）"]
[null,"区　　分",null,"予算額（円）","内容（○○県助成、会費等）"]
[null,"①","当助成申請金額※",{"$f":"'P7_〔複数年〕応募活動詳細（２年目）'!B8","v":0}]
[null,"②","当助成金以外(自己資金等)で\n応募活動に充当する金額"]
[null,"合　　計（①＋②）",null,{"$f":"SUM(D15:D16)","v":0}]
[]
[]
["※　当助成申請金額の内訳は、P９「助成申請金額の内訳」（本エクセルの別シート）に記入ください。"]

{"sheet":"P9_助成申請金額の内訳(２年目）","index":10,"n_rows":29,"n_cols":12,"rows_kept":29,"cut":false,"hidden":false,"merged":[[27,0,27,1],[27,2,27,3],[28,0,32,9],[0,0,0,1],[0,6,0,9],[3,0,3,9],[23,0,23,6],[1,0,1,9],[2,0,2,9]]}
["〈応募書類一覧ページに戻る〉",null,null,null,null,null,{"$f":"P1_団体情報!W1","v":"（整理番号：０００）"}]
["【複数年助成】２年目"]
["2027年度　助成申請金額の内訳"]
["・P8「収支計画書」に記入した 「当助成申請金額(上限100万円もしくは上限20万円)」の内訳 をご記入ください。\n・ひとつの経費を「助成金」と「自己資金等」で分けて支払う場合は、助成金で申請する金額を「当助成申請金額」欄に、自己負担分を「自己資金等支払金額」欄に、それぞれご記入ください。なお、自己資金のみで支払う経費は記入不要です。",null,null,null,null,null,null,null,null,null,null,"（参考）"]
["通し番号","活動","【科目】","内容（詳しくご記入ください）","数量","単位","単価(税込)","当助成申請金額\n（税込・円）","自己資金等支払金額\n（税込・円）","提出書類",null,"【科目】"]
[null,null,null,null,null,null,null,null,null,{"$f":"IF(OR(C6=\"備品費\",C6=\"賃借料\"),\n   \"見積書をご提出ください\",\n   IF(C6=\"謝礼金(講師向け)\",\n      \"講師略歴をご提出ください\",\n      IF(AND(C6=\"広告費\",H6>30000),\n         \"見積書をご提出ください\",\n         \"\"\n      )\n   )\n)","v":""},null,"消耗品費"]
[null,null,null,null,null,null,null,null,null,"",null,"広告費"]
[null,null,null,null,null,null,null,null,null,"",null,"通信運搬費"]
[null,null,null,null,null,null,null,null,null,"",null,"保険料"]
[null,null,null,null,null,null,null,null,null,"",null,"謝礼金\n（講師向け）"]
[null,null,null,null,null,null,null,null,null,"",null,"謝礼金\n（ボランティア向け）"]
[null,null,null,null,null,null,null,null,null,"",null,"人件費"]
[null,null,null,null,null,null,null,null,null,"",null,"旅費"]
[null,null,null,null,null,null,null,null,null,"",null,"備品費"]
[null,null,null,null,null,null,null,null,null,"",null,"賃借料"]
[null,null,null,null,null,null,null,null,null,"",null,"整備費"]
[null,null,null,null,null,null,null,null,null,"",null,"その他"]
[null,null,null,null,null,null,null,null,null,""]
[null,null,null,null,null,null,null,null,null,""]
[null,null,null,null,null,null,null,null,null,""]
[null,null,null,null,null,null,null,null,null,{"$f":"IF(OR(C21=\"備品費\",C21=\"賃借料\"),\n   \"見積書をご提出ください\",\n   IF(C21=\"謝礼金(講師向け)\",\n      \"講師略歴をご提出ください\",\n      IF(AND(C21=\"広告費\",H21>30000),\n         \"見積書をご提出ください\",\n         \"\"\n      )\n   )\n)","v":""}]
[null,null,null,null,null,null,null,null,null,""]
[null,null,null,null,null,null,null,null,null,""]
["合　計",null,null,null,null,null,null,{"$f":"SUM(H6:H23)","v":0},{"$f":"SUM(I5:I23)","v":0}]
["※行数は、必要に応じて追加ください。",null,null,null,"P8に記入した「当助成申請金額」："]
[null,null,null,null,null,null,null,{"$f":"IF(H24=H25,\"一致\",\"不一致（修正してください）\")","v":"一致"},"←「当助成申請金額」は必ず一致させてください。"]
[]
["応募コース",null,{"$f":"P2_応募活動概要!B4","v":194900},null,null,null,null,{"$f":"IF(OR(AND(C28=\"A：上限100万円助成への申請\",H24>1000000),\nAND(C28=\"B：上限20万円助成への申請\",H24>200000),\nAND(C28=\"C：複数年助成への申請（年間上限20万円かつ最長３年間）\",H24>200000)),\n\"上限金額をご確認ください\",\n\"\")","v":""}]
["【「助成申請金額の内訳」入力にあたっての留意点】\n・　募集要項の「７　助成対象経費」をよく確認のうえ、その内容に基づき記入してください。\n・　内容・単価・数量は明確、詳細に記載してください。"]

{"sheet":"P10_〔複数年〕応募活動詳細（3年目） ","index":11,"n_rows":23,"n_cols":36,"rows_kept":23,"cut":false,"hidden":false,"merged":[[0,24,0,30],[1,0,1,30],[3,0,3,30],[4,1,4,12],[4,13,4,15],[4,16,4,30],[0,0,0,4],[5,1,5,30],[6,1,6,30],[7,1,7,3],[7,4,7,10],[7,11,7,13],[7,14,7,20],[7,21,7,27],[7,28,7,30],[8,0,20,0],[8,1,8,4],[8,5,8,23],[8,24,8,30],[9,1,9,4],[9,5,9,23],[9,24,9,28],[9,29,9,30],[10,1,10,4],[10,5,10,23],[10,24,10,28],[10,29,10,30],[11,1,11,4],[11,5,11,23],[11,24,11,28],[11,29,11,30],[12,1,12,4],[12,5,12,23],[12,24,12,28],[12,29,12,30],[13,1,13,4],[13,5,13,23],[13,24,13,28],[13,29,13,30],[14,1,14,4],[14,5,14,23],[14,24,14,28],[14,29,14,30],[15,1,15,4],[15,5,15,23],[15,24,15,28],[15,29,15,30],[16,1,16,4],[16,5,16,23],[16,24,16,28],[16,29,16,30],[17,1,17,4],[17,5,17,23],[17,24,17,28],[17,29,17,30],[20,1,20,4],[20,5,20,23],[20,24,20,28],[20,29,20,30],[18,1,18,4],[18,5,18,23],[18,24,18,28],[18,29,18,30],[19,1,19,4],[19,5,19,23],[19,24,19,28],[19,29,19,30]]}
["〈応募書類一覧ページに戻る〉",null,null,null,null,null,null,null,null,null,null,null,null,null,null,null,null,null,null,null,null,null,null,null,{"$f":"P1_団体情報!W1","v":"（整理番号：０００）"}]
["【複数年助成】３年目の活動について"]
[]
["P2「応募活動詳細」の応募コース欄で「C：複数年助成への申請（年間上限20万円かつ最長３年間）を選択かつ活動年数が「３年間」の団体のみ本ページ以降を記入ください。"]
["2028年度\n助成申請額",null,null,null,null,null,null,null,null,null,null,null,null,"円",null,null,"※　P11 収支計画書の「当財団助成金額」と\n　　一致させてください。",null,null,null,null,null,null,null,null,null,null,null,null,null,null,null,null,null,{"$f":"LEN(#REF!)","v":{"$error":"#REF!"}}]
["2028年度\n活動内容\n（400字以内）",null,null,null,null,null,null,null,null,null,null,null,null,null,null,null,null,null,null,null,null,null,null,null,null,null,null,null,null,null,null,null,null,null,null,{"$f":"LEN(B6)","v":0}]
["2028年度\n目標とする成果\n（250字以内）",null,null,null,null,null,null,null,null,null,null,null,null,null,null,null,null,null,null,null,null,null,null,null,null,null,null,null,null,null,null,null,null,null,null,{"$f":"LEN(B7)","v":0}]
["2028年度\n目標とする参加者数","全体",null,null,null,null,null,null,null,null,null,"人",null,null,"子どもの人数再掲\n（高校生以下）",null,null,null,null,null,null,null,null,null,null,null,null,null,"人",null,null,null,null,null,{"$f":"LEN(#REF!)","v":{"$error":"#REF!"}}]
["2028年度\n活動スケジュール","活動月",null,null,null,"内　容",null,null,null,null,null,null,null,null,null,null,null,null,null,null,null,null,null,null,"子どもの目標参加者数（高校生以下）",null,null,null,null,null,null,null,null,"判定",{"$f":"MIN(AI5:AI8)","v":{"$error":"#REF!"}}]
[null,"４月",null,null,null,null,null,null,null,null,null,null,null,null,null,null,null,null,null,null,null,null,null,null,null,null,null,null,null,"人",null,null,null,"判定2",{"$f":"MIN(AI9,1)","v":{"$error":"#REF!"}}]
[null,"５月",null,null,null,null,null,null,null,null,null,null,null,null,null,null,null,null,null,null,null,null,null,null,null,null,null,null,null,"人"]
[null,"６月",null,null,null,null,null,null,null,null,null,null,null,null,null,null,null,null,null,null,null,null,null,null,null,null,null,null,null,"人"]
[null,"７月",null,null,null,null,null,null,null,null,null,null,null,null,null,null,null,null,null,null,null,null,null,null,null,null,null,null,null,"人"]
[null,"８月",null,null,null,null,null,null,null,null,null,null,null,null,null,null,null,null,null,null,null,null,null,null,null,null,null,null,null,"人"]
[null,"９月",null,null,null,null,null,null,null,null,null,null,null,null,null,null,null,null,null,null,null,null,null,null,null,null,null,null,null,"人"]
[null,"10月",null,null,null,null,null,null,null,null,null,null,null,null,null,null,null,null,null,null,null,null,null,null,null,null,null,null,null,"人"]
[null,"11月",null,null,null,null,null,null,null,null,null,null,null,null,null,null,null,null,null,null,null,null,null,null,null,null,null,null,null,"人"]
[null,"12月",null,null,null,null,null,null,null,null,null,null,null,null,null,null,null,null,null,null,null,null,null,null,null,null,null,null,null,"人"]
[null,"１月",null,null,null,null,null,null,null,null,null,null,null,null,null,null,null,null,null,null,null,null,null,null,null,null,null,null,null,"人"]
[null,"２月",null,null,null,null,null,null,null,null,null,null,null,null,null,null,null,null,null,null,null,null,null,null,null,null,null,null,null,"人"]
[null,"３月",null,null,null,null,null,null,null,null,null,null,null,null,null,null,null,null,null,null,null,null,null,null,null,null,null,null,null,"人"]
[]
["同一セル内で改行したい場合は、[Alt] + [Enter]を押してください。文字サイズは10ポイント以上でお願いします。"]

{"sheet":"P11_〔複数年〕収支計画書 (3年目) ","index":12,"n_rows":20,"n_cols":5,"rows_kept":20,"cut":false,"hidden":false,"merged":[[0,0,0,2],[12,0,12,4],[13,1,13,2],[16,1,16,2],[1,0,1,4],[2,0,2,4],[4,0,4,4],[5,1,5,2],[7,1,9,1],[10,1,10,2]]}
["〈応募書類一覧ページに戻る〉",null,null,null,{"$f":"P1_団体情報!W1","v":"（整理番号：０００）"}]
["【複数年助成】３年目"]
["2028年度　収支計画書"]
[]
["１　収入の部（応募活動の収入計画）"]
[null,"区　　分",null,"予算額（円）","内容（○○県助成、会費等）"]
[null,"①","当助成申請金額※",{"$f":"'P10_〔複数年〕応募活動詳細（3年目） '!B5","v":0}]
[null,"②","当該活動による収入"]
[null,null,"他の助成金・補助金収入"]
[null,null,"自己資金"]
[null,"合　　計（①＋②）",null,{"$f":"SUM(D7:D10)","v":0}]
[]
["２　支出の部（応募活動に必要な経費）"]
[null,"区　　分",null,"予算額（円）","内容（○○県助成、会費等）"]
[null,"①","当助成申請金額※",{"$f":"'P10_〔複数年〕応募活動詳細（3年目） '!B5","v":0}]
[null,"②","当助成金以外(自己資金等)で\n応募活動に充当する金額"]
[null,"合　　計（①＋②）",null,{"$f":"SUM(D15:D16)","v":0}]
[]
[]
["※　当助成申請金額の内訳は、P12「助成申請金額の内訳」（本エクセルの別シート）に記入ください。"]

{"sheet":"P12_助成申請金額の内訳(3年目）","index":13,"n_rows":29,"n_cols":12,"rows_kept":29,"cut":false,"hidden":false,"merged":[[27,0,27,1],[27,2,27,3],[28,0,32,9],[0,0,0,1],[0,6,0,9],[1,0,1,9],[2,0,2,9],[3,0,3,9],[23,0,23,6]]}
["〈応募書類一覧ページに戻る〉",null,null,null,null,null,{"$f":"P1_団体情報!W1","v":"（整理番号：０００）"}]
["【複数年助成】３年目"]
["2028年度　助成申請金額の内訳"]
["・P11「収支計画書」に記入した 「当助成申請金額(上限100万円もしくは上限20万円)」の内訳 をご記入ください。\n・ひとつの経費を「助成金」と「自己資金等」で分けて支払う場合は、助成金で申請する金額を「当助成申請金額」欄に、自己負担分を「自己資金等支払金額」欄に、それぞれご記入ください。なお、自己資金のみで支払う経費は記入不要です。",null,null,null,null,null,null,null,null,null,null,"（参考）"]
["通し番号","活動","【科目】","内容（詳しくご記入ください）","数量","単位","単価(税込)","当助成申請金額\n（税込・円）","自己資金等支払金額\n（税込・円）","提出書類",null,"【科目】"]
[null,null,null,null,null,null,null,null,null,{"$f":"IF(OR(C6=\"備品費\",C6=\"賃借料\"),\n   \"見積書をご提出ください\",\n   IF(C6=\"謝礼金(講師向け)\",\n      \"講師略歴をご提出ください\",\n      IF(AND(C6=\"広告費\",H6>30000),\n         \"見積書をご提出ください\",\n         \"\"\n      )\n   )\n)","v":""},null,"消耗品費"]
[null,null,null,null,null,null,null,null,null,"",null,"広告費"]
[null,null,null,null,null,null,null,null,null,"",null,"通信運搬費"]
[null,null,null,null,null,null,null,null,null,"",null,"保険料"]
[null,null,null,null,null,null,null,null,null,"",null,"謝礼金\n（講師向け）"]
[null,null,null,null,null,null,null,null,null,"",null,"謝礼金\n（ボランティア向け）"]
[null,null,null,null,null,null,null,null,null,"",null,"人件費"]
[null,null,null,null,null,null,null,null,null,"",null,"旅費"]
[null,null,null,null,null,null,null,null,null,"",null,"備品費"]
[null,null,null,null,null,null,null,null,null,"",null,"賃借料"]
[null,null,null,null,null,null,null,null,null,"",null,"整備費"]
[null,null,null,null,null,null,null,null,null,"",null,"その他"]
[null,null,null,null,null,null,null,null,null,""]
[null,null,null,null,null,null,null,null,null,""]
[null,null,null,null,null,null,null,null,null,""]
[null,null,null,null,null,null,null,null,null,""]
[null,null,null,null,null,null,null,null,null,""]
[null,null,null,null,null,null,null,null,null,""]
["合　計",null,null,null,null,null,null,{"$f":"SUM(H6:H23)","v":0},{"$f":"SUM(I5:I23)","v":0}]
["※行数は、必要に応じて追加ください。",null,null,null,"P11に記入した「当助成申請金額」："]
[null,null,null,null,null,null,null,{"$f":"IF(H24=H25,\"一致\",\"不一致（修正してください）\")","v":"一致"},"←「当助成申請金額」は必ず一致させてください。"]
[]
["応募コース",null,null,null,null,null,null,{"$f":"IF(OR(AND(C28=\"A：上限100万円助成への申請\",H24>1000000),\nAND(C28=\"B：上限20万円助成への申請\",H24>200000),\nAND(C28=\"C：複数年助成への申請（年間上限20万円かつ最長３年間）\",H24>200000)),\n\"上限金額をご確認ください\",\n\"\")","v":""}]
["【「助成申請金額の内訳」入力にあたっての留意点】\n・　募集要項の「７　助成対象経費」をよく確認のうえ、その内容に基づき記入してください。\n・　内容・単価・数量は明確、詳細に記載してください。"]